[Event "*** SCC Grand Prix: Titled Tuesday Blitz"]
[Site "Chess.com"]
[Date "2020.08.04"]
[Round "6"]
[White "tlomigtlis"]
[Black "Martins-BR"]
[Result "1-0"]
[WhiteElo "2425"]
[BlackElo "2223"]
[TimeControl "180+1"]
[EndTime "14:50:22 PDT"]
[Termination "tlomigtlis won by checkmate"]

1. d4 {[%clk 0:03:00.9]} 1... f5 {[%clk 0:02:58.8]} 2. g3 {[%clk 0:02:59.3]}
2... Nf6 {[%clk 0:02:58.6]} 3. Bg2 {[%clk 0:02:59.5]} 3... g6 {[%clk 0:02:58.6]}
4. c4 {[%clk 0:02:59.8]} 4... Bg7 {[%clk 0:02:58.3]} 5. Nc3 {[%clk 0:03:00.4]}
5... O-O {[%clk 0:02:58]} 6. Nf3 {[%clk 0:03:01]} 6... d6 {[%clk 0:02:58]} 7.
O-O {[%clk 0:03:00.7]} 7... c6 {[%clk 0:02:58.4]} 8. d5 {[%clk 0:02:56.4]} 8...
e5 {[%clk 0:02:57.7]} 9. dxe6 {[%clk 0:02:56.3]} 9... Bxe6 {[%clk 0:02:57.2]}
10. b3 {[%clk 0:02:50.1]} 10... Na6 {[%clk 0:02:54.2]} 11. Bb2 {[%clk
0:02:48.8]} 11... Qe7 {[%clk 0:02:47.8]} 12. Qd2 {[%clk 0:02:44.2]} 12... Rad8
{[%clk 0:02:45.5]} 13. Qe3 {[%clk 0:02:30.9]} 13... Rfe8 {[%clk 0:02:39.8]} 14.
Qxa7 {[%clk 0:02:20.5]} 14... Nc5 {[%clk 0:02:38.3]} 15. Nd4 {[%clk 0:01:55.7]}
15... Bf7 {[%clk 0:02:26.5]} 16. Rfe1 {[%clk 0:01:48.7]} 16... Ng4 {[%clk
0:02:23.3]} 17. Rad1 {[%clk 0:01:46.2]} 17... Nxf2 {[%clk 0:01:54.3]} 18. Kxf2
{[%clk 0:01:34.3]} 18... Bxd4+ {[%clk 0:01:53.1]} 19. Rxd4 {[%clk 0:01:10.6]}
19... Qe3+ {[%clk 0:01:51.7]} 20. Kf1 {[%clk 0:01:11.2]} 20... Qxd4 {[%clk
0:01:51.3]} 21. Na4 {[%clk 0:00:58]} 21... Qd2 {[%clk 0:01:46.6]} 22. Nxc5
{[%clk 0:00:43.9]} 22... dxc5 {[%clk 0:01:30.3]} 23. Bf6 {[%clk 0:00:43.3]}
23... Ra8 {[%clk 0:01:25.8]} 24. Qxb7 {[%clk 0:00:36.7]} 24... Rxa2 {[%clk
0:01:25.4]} 25. Qxc6 {[%clk 0:00:36.3]} 25... h5 {[%clk 0:01:07.5]} 26. Qxc5
{[%clk 0:00:26.7]} 26... f4 {[%clk 0:00:40.6]} 27. Bd5 {[%clk 0:00:22.1]} 27...
fxg3 {[%clk 0:00:29.4]} 28. hxg3 {[%clk 0:00:13.1]} 28... Rf8 {[%clk 0:00:27]}
29. Bxf7+ {[%clk 0:00:08.2]} 29... Rxf7 {[%clk 0:00:20.3]} 30. Qc8+ {[%clk
0:00:08.3]} 30... Rf8 {[%clk 0:00:19.8]} 31. Qe6+ {[%clk 0:00:08.6]} 31... Rf7
{[%clk 0:00:15.5]} 32. Qe8+ {[%clk 0:00:08.6]} 32... Rf8 {[%clk 0:00:15.2]} 33.
Qxg6# {[%clk 0:00:08.6]} 1-0

[Event "*** SCC Grand Prix: Titled Tuesday Blitz"]
[Site "Chess.com"]
[Date "2020.08.04"]
[Round "6"]
[White "Mikhail_Golubev"]
[Black "Artur0208"]
[Result "0-1"]
[WhiteElo "2599"]
[BlackElo "2778"]
[TimeControl "180+1"]
[EndTime "14:50:29 PDT"]
[Termination "Artur0208 won by resignation"]

1. e4 {[%clk 0:03:00.9]} 1... e5 {[%clk 0:02:59.6]} 2. Nf3 {[%clk 0:03:00.2]}
2... Nc6 {[%clk 0:03:00.3]} 3. Nc3 {[%clk 0:03:00.6]} 3... Nf6 {[%clk
0:02:59.8]} 4. d4 {[%clk 0:03:00.6]} 4... exd4 {[%clk 0:03:00.7]} 5. Nxd4 {[%clk
0:03:00.9]} 5... Bb4 {[%clk 0:03:01]} 6. Nxc6 {[%clk 0:03:01]} 6... bxc6 {[%clk
0:03:01.9]} 7. Bd3 {[%clk 0:03:01.1]} 7... d5 {[%clk 0:03:02.7]} 8. Bd2 {[%clk
0:03:01.1]} 8... O-O {[%clk 0:03:01.9]} 9. O-O {[%clk 0:03:00.3]} 9... Re8
{[%clk 0:03:02.5]} 10. Nxd5 {[%clk 0:02:46.4]} 10... cxd5 {[%clk 0:03:03.4]} 11.
Bxb4 {[%clk 0:02:45.7]} 11... Nxe4 {[%clk 0:02:56]} 12. f3 {[%clk 0:02:30.3]}
12... Nf6 {[%clk 0:02:55.2]} 13. Qd2 {[%clk 0:02:27.3]} 13... Rb8 {[%clk
0:02:32]} 14. Rfe1 {[%clk 0:02:26.1]} 14... Be6 {[%clk 0:02:22.7]} 15. b3 {[%clk
0:02:24.4]} 15... Nd7 {[%clk 0:02:20.1]} 16. Ba5 {[%clk 0:02:06.5]} 16... Nc5
{[%clk 0:02:08.6]} 17. Qc3 {[%clk 0:01:53.5]} 17... Nxd3 {[%clk 0:01:48.9]} 18.
cxd3 {[%clk 0:01:53.4]} 18... Rb7 {[%clk 0:01:48.6]} 19. Qd4 {[%clk 0:01:42.8]}
19... Qd6 {[%clk 0:01:36.7]} 20. Rac1 {[%clk 0:01:39.7]} 20... Rc8 {[%clk
0:01:35.3]} 21. Rc5 {[%clk 0:01:24]} 21... c6 {[%clk 0:01:34]} 22. Bc3 {[%clk
0:01:20.6]} 22... f6 {[%clk 0:01:33.9]} 23. b4 {[%clk 0:01:20]} 23... Re8 {[%clk
0:01:29]} 24. Ra5 {[%clk 0:01:15.2]} 24... Ree7 {[%clk 0:01:25.9]} 25. a4 {[%clk
0:01:08.8]} 25... Bf7 {[%clk 0:01:09]} 26. Ra6 {[%clk 0:01:03.3]} 26... Rxe1+
{[%clk 0:01:09]} 27. Bxe1 {[%clk 0:01:03.2]} 27... Qe7 {[%clk 0:01:01.6]} 28.
Bc3 {[%clk 0:00:49.5]} 28... Be8 {[%clk 0:01:01.3]} 29. h3 {[%clk 0:00:45.4]}
29... h5 {[%clk 0:00:39.1]} 30. Ra5 {[%clk 0:00:37.1]} 30... Bg6 {[%clk
0:00:32.7]} 31. Kh1 {[%clk 0:00:32.4]} 31... Qe2 {[%clk 0:00:26.3]} 32. Rxd5
{[%clk 0:00:24.6]} 32... cxd5 {[%clk 0:00:26]} 33. Qxd5+ {[%clk 0:00:23.8]}
33... Rf7 {[%clk 0:00:26.5]} 34. b5 {[%clk 0:00:21.8]} 34... Qxd3 {[%clk
0:00:26.1]} 35. Qa8+ {[%clk 0:00:19.4]} 35... Kh7 {[%clk 0:00:25.9]} 36. Be1
{[%clk 0:00:18.9]} 36... Qf1+ {[%clk 0:00:25.6]} 0-1

[Event "*** SCC Grand Prix: Titled Tuesday Blitz"]
[Site "Chess.com"]
[Date "2020.08.04"]
[Round "6"]
[White "Andreikka"]
[Black "hansen"]
[Result "0-1"]
[WhiteElo "2854"]
[BlackElo "3009"]
[TimeControl "180+1"]
[EndTime "14:50:34 PDT"]
[Termination "hansen won on time"]

1. c4 {[%clk 0:03:00.9]} 1... e5 {[%clk 0:02:59.8]} 2. Nc3 {[%clk 0:03:00.5]}
2... Nf6 {[%clk 0:02:59.7]} 3. Nf3 {[%clk 0:02:59.9]} 3... Nc6 {[%clk 0:02:52]}
4. e4 {[%clk 0:02:59.8]} 4... Bb4 {[%clk 0:02:37.4]} 5. d3 {[%clk 0:02:58.5]}
5... d6 {[%clk 0:02:34.6]} 6. a3 {[%clk 0:02:59]} 6... Bxc3+ {[%clk 0:02:33.4]}
7. bxc3 {[%clk 0:02:59.9]} 7... Nd7 {[%clk 0:02:33]} 8. g3 {[%clk 0:02:59.4]}
8... O-O {[%clk 0:02:32.2]} 9. Bg2 {[%clk 0:02:58.1]} 9... Nc5 {[%clk
0:02:27.8]} 10. Nh4 {[%clk 0:02:57.9]} 10... a6 {[%clk 0:02:15.2]} 11. a4 {[%clk
0:02:41]} 11... Ne7 {[%clk 0:01:54.9]} 12. Be3 {[%clk 0:02:35.7]} 12... b6
{[%clk 0:01:46.6]} 13. O-O {[%clk 0:02:31]} 13... a5 {[%clk 0:01:39.2]} 14. f4
{[%clk 0:02:18.5]} 14... exf4 {[%clk 0:01:39.1]} 15. gxf4 {[%clk 0:01:57.3]}
15... f5 {[%clk 0:01:39.1]} 16. e5 {[%clk 0:01:57.7]} 16... Rb8 {[%clk
0:01:12.6]} 17. exd6 {[%clk 0:00:53.2]} 17... Qxd6 {[%clk 0:01:06.9]} 18. Bd4
{[%clk 0:00:53.6]} 18... Ne6 {[%clk 0:01:02.3]} 19. Be5 {[%clk 0:00:51.4]} 19...
Qd7 {[%clk 0:00:58]} 20. Ra2 {[%clk 0:00:30.6]} 20... Rf7 {[%clk 0:00:49.8]} 21.
Re2 {[%clk 0:00:21.6]} 21... Nc5 {[%clk 0:00:39.3]} 22. d4 {[%clk 0:00:18.7]}
22... Ne4 {[%clk 0:00:31.2]} 23. Bxe4 {[%clk 0:00:15.9]} 23... fxe4 {[%clk
0:00:31]} 24. Rxe4 {[%clk 0:00:16.4]} 24... Qh3 {[%clk 0:00:19]} 25. Qe1 {[%clk
0:00:16.2]} 25... Nf5 {[%clk 0:00:09]} 26. Nxf5 {[%clk 0:00:15.1]} 26... Qxf5
{[%clk 0:00:09.9]} 27. d5 {[%clk 0:00:09.2]} 27... Qg6+ {[%clk 0:00:06.2]} 28.
Qg3 {[%clk 0:00:07.5]} 28... Qxe4 {[%clk 0:00:05.9]} 29. Re1 {[%clk 0:00:06.1]}
29... Qg6 {[%clk 0:00:05.3]} 0-1

[Event "*** SCC Grand Prix: Titled Tuesday Blitz"]
[Site "Chess.com"]
[Date "2020.08.04"]
[Round "6"]
[White "wild_cat99"]
[Black "Char_dasha"]
[Result "0-1"]
[WhiteElo "2643"]
[BlackElo "2417"]
[TimeControl "180+1"]
[EndTime "14:50:35 PDT"]
[Termination "Char_dasha won by checkmate"]

1. Nf3 {[%clk 0:03:00.9]} 1... Nf6 {[%clk 0:02:54.8]} 2. c4 {[%clk 0:03:01]}
2... e6 {[%clk 0:02:50.9]} 3. e3 {[%clk 0:03:00.5]} 3... b6 {[%clk 0:02:48.7]}
4. b3 {[%clk 0:03:00.4]} 4... Bb7 {[%clk 0:02:48.8]} 5. Bb2 {[%clk 0:03:00.9]}
5... Be7 {[%clk 0:02:47.9]} 6. Nc3 {[%clk 0:03:01.3]} 6... O-O {[%clk
0:02:48.3]} 7. g3 {[%clk 0:03:01.9]} 7... d5 {[%clk 0:02:38.7]} 8. Bg2 {[%clk
0:03:01.5]} 8... c5 {[%clk 0:02:31.6]} 9. O-O {[%clk 0:02:57.8]} 9... Nc6 {[%clk
0:02:31.7]} 10. Nh4 {[%clk 0:02:55.2]} 10... d4 {[%clk 0:02:30.6]} 11. exd4
{[%clk 0:02:54.7]} 11... cxd4 {[%clk 0:02:30.5]} 12. Ne2 {[%clk 0:02:46.2]}
12... Qd7 {[%clk 0:02:21.4]} 13. d3 {[%clk 0:02:40.9]} 13... Rad8 {[%clk
0:02:18.8]} 14. f4 {[%clk 0:02:40.3]} 14... Ng4 {[%clk 0:02:15.4]} 15. Bc1
{[%clk 0:02:10.1]} 15... Ne3 {[%clk 0:02:04.2]} 16. Bxe3 {[%clk 0:02:09.3]}
16... dxe3 {[%clk 0:02:04.8]} 17. d4 {[%clk 0:01:53.8]} 17... Nxd4 {[%clk
0:01:50.8]} 18. Nxd4 {[%clk 0:01:54.7]} 18... Bxg2 {[%clk 0:01:29.9]} 19. Kxg2
{[%clk 0:01:53.2]} 19... Qxd4 {[%clk 0:01:18.5]} 20. Qxd4 {[%clk 0:01:50.1]}
20... Rxd4 {[%clk 0:01:18]} 21. Nf3 {[%clk 0:01:45.9]} 21... Re4 {[%clk
0:01:13.3]} 22. Rfe1 {[%clk 0:01:36.4]} 22... e2 {[%clk 0:01:05.2]} 23. a3
{[%clk 0:01:31.7]} 23... Rd8 {[%clk 0:01:02.7]} 24. Ra2 {[%clk 0:01:16.1]} 24...
Re3 {[%clk 0:01:02.7]} 25. b4 {[%clk 0:01:13.5]} 25... a5 {[%clk 0:00:52.3]} 26.
Ne5 {[%clk 0:01:10.7]} 26... Rc8 {[%clk 0:00:20.9]} 27. Kf2 {[%clk 0:01:04.8]}
27... Rb3 {[%clk 0:00:19.1]} 28. Rexe2 {[%clk 0:00:57]} 28... axb4 {[%clk
0:00:18.5]} 29. axb4 {[%clk 0:00:57.7]} 29... Bxb4 {[%clk 0:00:18.6]} 30. Nd7
{[%clk 0:00:51.7]} 30... Rd8 {[%clk 0:00:17.4]} 31. Ra7 {[%clk 0:00:49.8]} 31...
h6 {[%clk 0:00:16.6]} 32. Kg2 {[%clk 0:00:44.8]} 32... Bc5 {[%clk 0:00:16.2]}
33. Nxc5 {[%clk 0:00:42]} 33... bxc5 {[%clk 0:00:16.4]} 34. Rc7 {[%clk
0:00:42.9]} 34... Rd4 {[%clk 0:00:14.2]} 35. Rc8+ {[%clk 0:00:37.8]} 35... Kh7
{[%clk 0:00:14]} 36. Rc2 {[%clk 0:00:37.9]} 36... Rbd3 {[%clk 0:00:06.4]} 37.
Kf1 {[%clk 0:00:37.1]} 37... Rd1+ {[%clk 0:00:06.3]} 38. Ke2 {[%clk 0:00:36.8]}
38... Rh1 {[%clk 0:00:06.4]} 39. Ke3 {[%clk 0:00:35.2]} 39... Rdd1 {[%clk
0:00:05.5]} 40. Rxc5 {[%clk 0:00:33.4]} 40... Rde1+ {[%clk 0:00:05.8]} 41. Kd4
{[%clk 0:00:33.3]} 41... Rd1+ {[%clk 0:00:06]} 42. Ke5 {[%clk 0:00:33.1]} 42...
Rhe1+ {[%clk 0:00:05.2]} 43. Re2 {[%clk 0:00:31.4]} 43... Rxe2# {[%clk
0:00:05.4]} 0-1

[Event "*** SCC Grand Prix: Titled Tuesday Blitz"]
[Site "Chess.com"]
[Date "2020.08.04"]
[Round "6"]
[White "Batsai"]
[Black "VladaSviridova"]
[Result "0-1"]
[WhiteElo "2338"]
[BlackElo "2182"]
[TimeControl "180+1"]
[EndTime "14:50:35 PDT"]
[Termination "VladaSviridova won by checkmate"]

1. e4 {[%clk 0:02:40.6]} 1... e6 {[%clk 0:02:59.7]} 2. d4 {[%clk 0:02:40.2]}
2... d5 {[%clk 0:03:00]} 3. Nc3 {[%clk 0:02:40.4]} 3... Bb4 {[%clk 0:02:59.6]}
4. e5 {[%clk 0:02:38.9]} 4... c5 {[%clk 0:02:59.8]} 5. a3 {[%clk 0:02:39]} 5...
Bxc3+ {[%clk 0:03:00.1]} 6. bxc3 {[%clk 0:02:39.9]} 6... Ne7 {[%clk 0:03:00.4]}
7. h4 {[%clk 0:02:38.3]} 7... b6 {[%clk 0:02:58.9]} 8. h5 {[%clk 0:02:38]} 8...
h6 {[%clk 0:02:59.2]} 9. Rh4 {[%clk 0:02:33.3]} 9... Ba6 {[%clk 0:02:56.6]} 10.
Bxa6 {[%clk 0:02:28.5]} 10... Nxa6 {[%clk 0:02:56.8]} 11. Rg4 {[%clk 0:02:29.4]}
11... Nf5 {[%clk 0:02:54.8]} 12. Ne2 {[%clk 0:02:18.7]} 12... Nb8 {[%clk
0:02:44.4]} 13. a4 {[%clk 0:02:09.3]} 13... Nc6 {[%clk 0:02:42.6]} 14. Ba3
{[%clk 0:02:03.6]} 14... Qc7 {[%clk 0:02:35.4]} 15. Ng3 {[%clk 0:01:39.6]} 15...
Nxg3 {[%clk 0:02:18.6]} 16. Rxg3 {[%clk 0:01:40.5]} 16... Rg8 {[%clk 0:02:17.3]}
17. f4 {[%clk 0:01:22.3]} 17... Na5 {[%clk 0:02:10.2]} 18. Qd3 {[%clk
0:00:48.1]} 18... Nc4 {[%clk 0:01:43.7]} 19. Bc1 {[%clk 0:00:44]} 19... Qd7
{[%clk 0:00:56.8]} 20. f5 {[%clk 0:00:41.1]} 20... O-O-O {[%clk 0:00:52.1]} 21.
a5 {[%clk 0:00:33.7]} 21... Qb7 {[%clk 0:00:43.8]} 22. axb6 {[%clk 0:00:22.7]}
22... axb6 {[%clk 0:00:42.5]} 23. fxe6 {[%clk 0:00:22.4]} 23... fxe6 {[%clk
0:00:41.6]} 24. Rg6 {[%clk 0:00:21.2]} 24... Rde8 {[%clk 0:00:38.5]} 25. Qh3
{[%clk 0:00:19.7]} 25... Qf7 {[%clk 0:00:33.6]} 26. Ke2 {[%clk 0:00:12.1]} 26...
Kb7 {[%clk 0:00:32.8]} 27. dxc5 {[%clk 0:00:10.7]} 27... Rgf8 {[%clk 0:00:26.9]}
28. c6+ {[%clk 0:00:09.1]} 28... Kxc6 {[%clk 0:00:26.4]} 29. Be3 {[%clk
0:00:08.7]} 29... Nxe3 {[%clk 0:00:24.1]} 30. Qxe3 {[%clk 0:00:09]} 30... Qf5
{[%clk 0:00:21.6]} 31. g4 {[%clk 0:00:07.6]} 31... Qxc2+ {[%clk 0:00:20.9]} 32.
Ke1 {[%clk 0:00:05.2]} 32... Qg2 {[%clk 0:00:17.7]} 33. Rc1 {[%clk 0:00:02.3]}
33... Rf1# {[%clk 0:00:17.5]} 0-1

[Event "*** SCC Grand Prix: Titled Tuesday Blitz"]
[Site "Chess.com"]
[Date "2020.08.04"]
[Round "6"]
[White "Cambek64"]
[Black "realmadridtv"]
[Result "0-1"]
[WhiteElo "2372"]
[BlackElo "2483"]
[TimeControl "180+1"]
[EndTime "14:50:37 PDT"]
[Termination "realmadridtv won by resignation"]

1. d4 {[%clk 0:02:57.9]} 1... Nf6 {[%clk 0:02:59.2]} 2. Nc3 {[%clk 0:02:58.2]}
2... g6 {[%clk 0:02:59.8]} 3. e4 {[%clk 0:02:57.3]} 3... d6 {[%clk 0:03:00.3]}
4. Bg5 {[%clk 0:02:55.2]} 4... Bg7 {[%clk 0:02:59.9]} 5. e5 {[%clk 0:02:55.3]}
5... dxe5 {[%clk 0:02:58.2]} 6. dxe5 {[%clk 0:02:55.4]} 6... Qxd1+ {[%clk
0:02:53.7]} 7. Rxd1 {[%clk 0:02:55.6]} 7... Nfd7 {[%clk 0:02:52.8]} 8. Nb5
{[%clk 0:02:35.5]} 8... Na6 {[%clk 0:02:43.4]} 9. f4 {[%clk 0:02:29.9]} 9... f6
{[%clk 0:02:37.1]} 10. exf6 {[%clk 0:02:26.9]} 10... Nxf6 {[%clk 0:02:37.2]} 11.
c3 {[%clk 0:02:14.7]} 11... c6 {[%clk 0:02:33.2]} 12. Nd4 {[%clk 0:02:13.1]}
12... Nc7 {[%clk 0:02:33.8]} 13. Bc4 {[%clk 0:02:11.3]} 13... Nfd5 {[%clk
0:02:32.1]} 14. Bxd5 {[%clk 0:02:05.3]} 14... Nxd5 {[%clk 0:02:30.8]} 15. Nge2
{[%clk 0:01:44.3]} 15... h6 {[%clk 0:02:13.8]} 16. Bh4 {[%clk 0:01:29.6]} 16...
Ne3 {[%clk 0:02:12.8]} 17. Rg1 {[%clk 0:01:28.5]} 17... Nxd1 {[%clk 0:02:10.4]}
18. Kxd1 {[%clk 0:01:28.4]} 18... Bg4 {[%clk 0:02:08.5]} 19. Kc2 {[%clk
0:01:19.5]} 19... c5 {[%clk 0:02:04.6]} 20. Nf3 {[%clk 0:01:17.2]} 20... O-O-O
{[%clk 0:01:54]} 21. Bf2 {[%clk 0:01:09.8]} 21... b6 {[%clk 0:01:49.3]} 22. Be3
{[%clk 0:01:04.7]} 22... Bf5+ {[%clk 0:01:42.2]} 23. Kc1 {[%clk 0:01:03.7]}
23... Rhe8 {[%clk 0:01:38.7]} 24. g4 {[%clk 0:00:56.6]} 24... Rd3 {[%clk
0:01:28.8]} 25. gxf5 {[%clk 0:00:50]} 25... Rxe3 {[%clk 0:01:27.8]} 26. Rxg6
{[%clk 0:00:49.8]} 26... Bf6 {[%clk 0:01:26.6]} 27. Neg1 {[%clk 0:00:47.2]}
27... Re4 {[%clk 0:01:14.3]} 28. Nh3 {[%clk 0:00:45.4]} 28... Re2 {[%clk
0:01:03]} 29. Rxh6 {[%clk 0:00:37.9]} 29... Rd8 {[%clk 0:00:51.9]} 30. Nhg5
{[%clk 0:00:35.3]} 30... Rd5 {[%clk 0:00:38.5]} 31. Nh7 {[%clk 0:00:27.4]} 31...
Rf2 {[%clk 0:00:31.9]} 32. Nxf6 {[%clk 0:00:24.7]} 32... exf6 {[%clk 0:00:32.2]}
33. Rh3 {[%clk 0:00:17.8]} 33... Rd3 {[%clk 0:00:28.6]} 34. Ng5 {[%clk
0:00:17.7]} 34... Rxh3 {[%clk 0:00:26.5]} 35. Nxh3 {[%clk 0:00:17.9]} 35... Rxh2
{[%clk 0:00:23.7]} 36. Ng1 {[%clk 0:00:17.3]} 36... Rh1 {[%clk 0:00:24.1]} 0-1

[Event "*** SCC Grand Prix: Titled Tuesday Blitz"]
[Site "Chess.com"]
[Date "2020.08.04"]
[Round "6"]
[White "ellatambien"]
[Black "bazar-wokzal"]
[Result "1/2-1/2"]
[WhiteElo "2343"]
[BlackElo "2467"]
[TimeControl "180+1"]
[EndTime "14:50:37 PDT"]
[Termination "Game drawn by agreement"]

1. c4 {[%clk 0:03:00.9]} 1... f5 {[%clk 0:02:59.6]} 2. Nf3 {[%clk 0:02:57.1]}
2... Nf6 {[%clk 0:02:59.1]} 3. g3 {[%clk 0:02:56.7]} 3... d6 {[%clk 0:02:58.8]}
4. d4 {[%clk 0:02:56.3]} 4... g6 {[%clk 0:02:58.7]} 5. Bg2 {[%clk 0:02:56.2]}
5... Bg7 {[%clk 0:02:59.4]} 6. O-O {[%clk 0:02:56.3]} 6... O-O {[%clk 0:03:00]}
7. Nc3 {[%clk 0:02:56.4]} 7... Qe8 {[%clk 0:03:00.5]} 8. d5 {[%clk 0:02:48.4]}
8... c6 {[%clk 0:02:56.6]} 9. Nd4 {[%clk 0:02:47.4]} 9... cxd5 {[%clk
0:02:54.1]} 10. Nxd5 {[%clk 0:02:45.7]} 10... Nxd5 {[%clk 0:02:53.4]} 11. Bxd5+
{[%clk 0:02:44.8]} 11... e6 {[%clk 0:02:50.8]} 12. Bg2 {[%clk 0:02:43.7]} 12...
Nc6 {[%clk 0:02:51]} 13. Nxc6 {[%clk 0:02:37.5]} 13... bxc6 {[%clk 0:02:51.5]}
14. Qxd6 {[%clk 0:02:37.5]} 14... Bd7 {[%clk 0:02:49]} 15. Be3 {[%clk
0:02:27.4]} 15... Bxb2 {[%clk 0:02:43.9]} 16. Rab1 {[%clk 0:02:16.7]} 16... Bf6
{[%clk 0:02:43.2]} 17. Rb7 {[%clk 0:02:11.6]} 17... Rf7 {[%clk 0:02:43.5]} 18.
Rfb1 {[%clk 0:01:47.3]} 18... Qe7 {[%clk 0:02:26.9]} 19. Rxd7 {[%clk 0:01:33.8]}
19... Qxd7 {[%clk 0:02:25.6]} 20. Qxd7 {[%clk 0:01:33.9]} 20... Rxd7 {[%clk
0:02:25.5]} 21. Bxc6 {[%clk 0:01:34.1]} 21... Rad8 {[%clk 0:02:23.6]} 22. Bxd7
{[%clk 0:01:31.8]} 22... Rxd7 {[%clk 0:02:24.5]} 23. Rb8+ {[%clk 0:01:21.7]}
23... Kf7 {[%clk 0:02:23.7]} 24. Ra8 {[%clk 0:01:21.9]} 24... Bd4 {[%clk
0:02:14.4]} 25. Bxd4 {[%clk 0:01:20.3]} 25... Rxd4 {[%clk 0:02:14]} 26. Rxa7+
{[%clk 0:01:20.5]} 26... Kf6 {[%clk 0:02:14.7]} 27. c5 {[%clk 0:00:57.1]} 27...
Rc4 {[%clk 0:02:14.4]} 28. Rxh7 {[%clk 0:00:51]} 28... Rxc5 {[%clk 0:02:14.1]}
29. Ra7 {[%clk 0:00:50.9]} 29... g5 {[%clk 0:02:09.7]} 30. h3 {[%clk 0:00:50.2]}
30... f4 {[%clk 0:02:03.2]} 31. Kg2 {[%clk 0:00:47.1]} 31... e5 {[%clk
0:01:50.7]} 32. gxf4 {[%clk 0:00:39.9]} 32... gxf4 {[%clk 0:01:45.8]} 33. Kf3
{[%clk 0:00:36.8]} 33... Kf5 {[%clk 0:01:33]} 34. e4+ {[%clk 0:00:29.4]} 34...
fxe3 {[%clk 0:01:25.1]} 35. fxe3 {[%clk 0:00:27.9]} 35... Rc2 {[%clk 0:01:16.6]}
36. e4+ {[%clk 0:00:22.7]} 36... Kg5 {[%clk 0:01:15.1]} 37. a4 {[%clk
0:00:21.7]} 37... Rc3+ {[%clk 0:01:14.1]} 38. Ke2 {[%clk 0:00:18.3]} 38... Rxh3
{[%clk 0:01:12.8]} 39. a5 {[%clk 0:00:18.1]} 39... Kf4 {[%clk 0:01:11.6]} 40. a6
{[%clk 0:00:15.1]} 40... Kxe4 {[%clk 0:01:11.5]} 41. Ra8 {[%clk 0:00:15]} 41...
Rh2+ {[%clk 0:01:11.8]} 42. Kf1 {[%clk 0:00:13.8]} 42... Ra2 {[%clk 0:01:11.8]}
43. a7 {[%clk 0:00:13.5]} 43... Ra6 {[%clk 0:01:04.5]} 44. Kf2 {[%clk
0:00:11.5]} 44... Ra5 {[%clk 0:01:03.6]} 45. Ke2 {[%clk 0:00:09.7]} 45... Ra2+
{[%clk 0:01:01.5]} 46. Kf1 {[%clk 0:00:09.6]} 46... Ke3 {[%clk 0:01:00.3]} 47.
Re8 {[%clk 0:00:08.5]} 47... Ra1+ {[%clk 0:00:58.6]} 48. Kg2 {[%clk 0:00:07.7]}
48... Ra2+ {[%clk 0:00:58.9]} 49. Kg3 {[%clk 0:00:07.3]} 49... Rxa7 {[%clk
0:00:58.3]} 50. Rxe5+ {[%clk 0:00:07.6]} 50... Kd4 {[%clk 0:00:58.9]} 51. Rf5
{[%clk 0:00:07.7]} 1/2-1/2

[Event "*** SCC Grand Prix: Titled Tuesday Blitz"]
[Site "Chess.com"]
[Date "2020.08.04"]
[Round "6"]
[White "AJSC02"]
[Black "Euge_chess"]
[Result "0-1"]
[WhiteElo "2252"]
[BlackElo "2054"]
[TimeControl "180+1"]
[EndTime "14:50:38 PDT"]
[Termination "Euge_chess won on time"]

1. e4 {[%clk 0:03:00.9]} 1... e5 {[%clk 0:02:59.2]} 2. Nf3 {[%clk 0:03:01]} 2...
Nc6 {[%clk 0:02:59.6]} 3. Bc4 {[%clk 0:03:01.6]} 3... Nf6 {[%clk 0:02:59.7]} 4.
d3 {[%clk 0:02:58.7]} 4... d5 {[%clk 0:02:59.8]} 5. exd5 {[%clk 0:02:59.6]} 5...
Nxd5 {[%clk 0:02:59.8]} 6. O-O {[%clk 0:02:59.3]} 6... Be6 {[%clk 0:02:59.9]} 7.
Re1 {[%clk 0:02:58.3]} 7... Qd6 {[%clk 0:02:59.8]} 8. Nbd2 {[%clk 0:02:53.3]}
8... O-O-O {[%clk 0:02:58.6]} 9. Ne4 {[%clk 0:02:53.5]} 9... Qd7 {[%clk
0:02:58.5]} 10. Neg5 {[%clk 0:02:48.3]} 10... Bg4 {[%clk 0:02:51.8]} 11. h3
{[%clk 0:02:48]} 11... Bh5 {[%clk 0:02:33.9]} 12. g4 {[%clk 0:02:34.7]} 12...
Bg6 {[%clk 0:02:33.1]} 13. Nxe5 {[%clk 0:02:29.8]} 13... Nxe5 {[%clk 0:02:32.9]}
14. Rxe5 {[%clk 0:02:30]} 14... Nb6 {[%clk 0:02:33.1]} 15. Bb3 {[%clk
0:02:08.6]} 15... Bd6 {[%clk 0:02:31.1]} 16. Re1 {[%clk 0:02:04.6]} 16... h5
{[%clk 0:02:27.6]} 17. Qf3 {[%clk 0:01:54.7]} 17... hxg4 {[%clk 0:02:21.9]} 18.
hxg4 {[%clk 0:01:51]} 18... Rh4 {[%clk 0:01:49.6]} 19. Ne6 {[%clk 0:01:29.4]}
19... Rdh8 {[%clk 0:01:39.6]} 20. Bg5 {[%clk 0:01:19.9]} 20... Rh3 {[%clk
0:01:18.4]} 21. Qg2 {[%clk 0:01:11.7]} 21... Bh2+ {[%clk 0:00:50.1]} 22. Kf1
{[%clk 0:01:09.3]} 22... Bd6 {[%clk 0:00:50.4]} 23. Nf4 {[%clk 0:00:49.9]} 23...
Bxf4 {[%clk 0:00:43.3]} 24. Bxf4 {[%clk 0:00:50.8]} 24... Qd4 {[%clk 0:00:15.7]}
25. Be5 {[%clk 0:00:42.4]} 25... Bxd3+ {[%clk 0:00:14.6]} 26. cxd3 {[%clk
0:00:38.2]} 26... Qxd3+ {[%clk 0:00:14.5]} 27. Kg1 {[%clk 0:00:38.4]} 27... f6
{[%clk 0:00:12.1]} 28. Rad1 {[%clk 0:00:33.4]} 28... Qh7 {[%clk 0:00:08.5]} 29.
Be6+ {[%clk 0:00:32.5]} 29... Kb8 {[%clk 0:00:08.2]} 30. Bg3 {[%clk 0:00:26.8]}
30... Rh1+ {[%clk 0:00:07.6]} 0-1